lending/lending_fUSD_20250508
["ID","MTS","AMOUNT","RATE_DAILY","PERIOD"]
[360318301,1746740937300,-5000.0,0.00037,120]
[360318302,1746740937328,-692.50321206,0.000372,120]
[360318303,1746740937360,-692.50321206,0.000372,120]
[360318304,1746740937390,-304.93797,0.000376,120]
[360318305,1746740937417,-515.56,0.00037808,60]
[360318306,1746740937443,-515.56,0.00037839,80]
[360318307,1746740937469,-515.56,0.00037869,100]
[360318308,1746740937495,-515.57,0.000379,120]
[360318309,1746740937521,-500.70121657,0.00038,30]
[360318310,1746740937548,-2000.0,0.00038,120]
[360318311,1746740937574,-1800.0,0.00038,39]
[360318312,1746740937600,-1561.5116709,0.00038,120]
[360318313,1746740937627,-5037.0,0.00038,30]
[360318314,1746740937653,-1443.75,0.00038,30]
[360318315,1746740937683,-5000.0,0.00038,120]
[360318316,1746740937710,-13000.0,0.00038,120]
[360318317,1746740937739,-528.17070794,0.00038356,120]
[360318318,1746740937767,-500.0,0.00038356,120]
[360318319,1746740937794,-500.0,0.00038356,120]
[360318320,1746740937821,-500.0,0.00038356,120]
[360318321,1746740937849,-574.32301663,0.00038356,120]
[360318322,1746740937879,-500.0,0.00038356,120]
[360318323,1746740937909,-500.0,0.00038356,120]
[360318324,1746740937939,-412.68360804,0.00038356,120]
[360318325,1746740937968,-500.0,0.00038356,120]
[360318326,1746740937996,-500.0,0.00038356,120]
[360318327,1746740938025,-500.0,0.00038356,120]
[360318328,1746740938052,-500.0,0.00038356,120]
[360318329,1746740938079,-500.0,0.00038356,120]
[360318330,1746740938108,-500.0,0.00038356,120]
[360318331,1746740938136,-500.0,0.00038356,120]
[360318332,1746740938163,-500.0,0.00038356,120]
[360318333,1746740938190,-207.168468,0.00038356,120]
[360318334,1746740938218,-640.39555983,0.00038356,120]
[360318335,1746740938248,-504.41324832,0.00038356,120]
[360318336,1746740938277,-500.0,0.00038356,120]
[360318337,1746740938306,-503.64430949,0.00038356,120]
[360318338,1746740938338,-1381.93,0.00038356,120]
[360318339,1746740938367,-1381.93,0.00038356,120]
[360318340,1746740938396,-1381.93,0.00038356,120]
[360318341,1746740938425,-1381.93,0.00038356,120]
[360318342,1746740938453,-1381.93,0.00038356,120]
[360318343,1746740938481,-1381.93,0.00038356,120]
[360318344,1746740938509,-1381.93,0.00038356,120]
[360318345,1746740938539,-1381.93,0.00038356,120]
[360318346,1746740938567,-1381.93,0.00038356,120]
[360318347,1746740938594,-1381.93,0.00038356,120]
[360318348,1746740938623,-1381.93,0.00038356,120]
[360318349,1746740938650,-1381.93,0.00038356,120]
[360318350,1746740939027,-1381.93,0.00038356,120]
[360318351,1746740939057,-1381.93,0.00038356,120]
[360318352,1746740939086,-1381.93,0.00038356,120]
[360318353,1746740939114,-1381.93,0.00038356,120]
[360318354,1746740939141,-1381.93,0.00038356,120]
[360318355,1746740939167,-1381.93,0.00038356,120]
[360318356,1746740939194,-1381.93,0.00038356,120]
[360318357,1746740939221,-1381.93,0.00038356,120]
[360318358,1746740939249,-1381.93,0.00038356,120]
[360318359,1746740939278,-1381.93,0.00038356,120]
[360318360,1746740939304,-1381.93,0.00038356,120]
[360318361,1746740939331,-1382.01728782,0.00038356,120]
[360318362,1746740939359,-534.29592916,0.00038356,120]
[360318363,1746740939386,-500.0,0.00038356,120]
[360318364,1746740939413,-514.97597185,0.00038356,120]
[360318365,1746740939440,-500.0,0.00038356,120]
[360318366,1746740939465,-500.0,0.00038356,120]
[360318367,1746740939490,-500.0,0.00038356,120]
[360318368,1746740939516,-500.0,0.00038356,120]
[360318369,1746740939541,-500.0,0.00038356,120]
[360318370,1746740939568,-500.0,0.00038356,120]
[360318371,1746740939598,-500.0,0.00038356,120]
[360318372,1746740939624,-500.0,0.00038356,120]
[360318373,1746740939649,-500.0,0.00038356,120]
[360318374,1746740939675,-500.0,0.00038356,120]
[360318375,1746740939700,-500.0,0.00038356,120]
[360318376,1746740939724,-627.01951936,0.00038356,120]
[360318377,1746740939751,-500.0,0.00038356,120]
[360318378,1746740939777,-500.0,0.00038356,120]
[360318379,1746740939803,-500.0,0.00038356,120]
[360318380,1746740939830,-500.0,0.00038356,120]
[360318381,1746740939857,-500.0,0.00038356,120]
[360318382,1746740939885,-500.0,0.00038356,120]
[360318383,1746740939916,-500.0,0.00038356,120]
[360318384,1746740939945,-500.0,0.00038356,120]
[360318385,1746740939974,-500.0,0.00038356,120]
[360318386,1746740940003,-500.0,0.00038356,120]
[360318387,1746740940033,-500.0,0.00038356,120]
[360318388,1746740940063,-500.0,0.00038356,120]
[360318389,1746740940093,-424.56,0.00038356,120]
[360318390,1746740940120,-492.16468238,0.00038356,120]
[360318391,1746740940148,-500.0,0.00038356,120]
[360318392,1746740940175,-500.0,0.00038356,120]
[360318393,1746740940201,-370.44,0.00038356,120]
[360318394,1746740940228,-500.0,0.00038356,120]
[360318395,1746740940255,-518.14240855,0.00038356,120]
[360318396,1746740940282,-500.0,0.00038356,120]
[360318397,1746740940308,-500.0,0.00038356,120]
[360318398,1746740940335,-427.21148242,0.00038356,120]
[360318399,1746740940365,-500.0,0.00038356,120]
[360318400,1746740940395,-500.0,0.00038356,120]
[360318401,1746740940424,-500.0,0.00038356,120]
[360318402,1746740940453,-500.0,0.00038356,120]
[360318403,1746740940481,-318.56,0.00038356,120]
[360318404,1746740940510,-1323.24,0.00038356,120]
[360318405,1746740940538,-1323.24,0.00038356,120]
[360318406,1746740940566,-1323.24,0.00038356,120]
[360318407,1746740940595,-1323.24,0.00038356,120]
[360318408,1746740940624,-1323.24,0.00038356,120]
[360318409,1746740940652,-1323.24,0.00038356,120]
[360318410,1746740940680,-1323.24,0.00038356,120]
[360318411,1746740940708,-1323.24,0.00038356,120]
[360318412,1746740940735,-1323.24,0.00038356,120]
[360318413,1746740940764,-1323.24,0.00038356,120]
[360318414,1746740940791,-1323.24,0.00038356,120]
[360318415,1746740940818,-1323.24,0.00038356,120]
[360318416,1746740940845,-1323.24,0.00038356,120]
[360318417,1746740940873,-1323.24,0.00038356,120]
[360318418,1746740940900,-1323.24,0.00038356,120]
[360318419,1746740940931,-1323.24,0.00038356,120]
[360318420,1746740940958,-1323.24,0.00038356,120]
[360318421,1746740940988,-1323.24,0.00038356,120]
[360318422,1746740941015,-500.0,0.00038356,120]
[360318423,1746740941041,-500.0,0.00038356,120]
[360318424,1746740941066,-500.0,0.00038356,120]
[360318425,1746740941091,-500.0,0.00038356,120]
[360318426,1746740941117,-500.0,0.00038356,120]
[360318427,1746740941142,-500.0,0.00038356,120]
[360318428,1746740941167,-500.0,0.00038356,120]
[360318429,1746740941194,-500.0,0.00038356,120]
[360318430,1746740941221,-500.0,0.00038356,120]
[360318431,1746740941248,-500.0,0.00038356,120]
[360318432,1746740941274,-500.0,0.00038356,120]
[360318433,1746740941302,-157.72472384,0.00038356,120]
[360318434,1746740941327,-500.0,0.00038356,120]
[360318435,1746740941356,-500.0,0.00038356,120]
[360318436,1746740941382,-500.0,0.00038356,120]
[360318437,1746740941407,-500.0,0.00038356,120]
[360318438,1746740941431,-500.0,0.00038356,120]
[360318439,1746740941457,-500.0,0.00038356,120]
[360318440,1746740941482,-565.59428912,0.00038356,120]
[360318441,1746740941507,-500.0,0.00038356,120]
[360318442,1746740941532,-500.0,0.00038356,120]
[360318443,1746740941558,-500.0,0.00038356,120]
[360318444,1746740941583,-500.0,0.00038356,120]
[360318445,1746740942029,-500.0,0.00038356,120]
[360318446,1746740942056,-500.0,0.00038356,120]
[360318447,1746740942081,-500.0,0.00038356,120]
[360318448,1746740942108,-500.0,0.00038356,120]
[360318449,1746740942135,-500.0,0.00038356,120]
[360318450,1746740942160,-500.0,0.00038356,120]
[360318451,1746740942185,-500.0,0.00038356,120]
[360318452,1746740942211,-375.48686841,0.00038356,120]
[360318453,1746740942240,-500.0,0.00038356,120]
[360318454,1746740942267,-500.0,0.00038356,120]
[360318455,1746740942294,-500.0,0.00038356,120]
[360318456,1746740942320,-187.97813707,0.00038356,120]
[360318457,1746740942346,-557.34,0.00038356,120]
[360318458,1746740942372,-557.34,0.00038356,120]
[360318459,1746740942398,-557.34,0.00038356,120]
[360318460,1746740942424,-557.34,0.00038356,120]
[360318461,1746740942449,-557.34,0.00038356,120]
[360318462,1746740942476,-557.34,0.00038356,120]
[360318463,1746740942501,-557.34,0.00038356,120]
[360318464,1746740942526,-557.34,0.00038356,120]
[360318465,1746740942550,-557.34,0.00038356,120]
[360318466,1746740942576,-557.34,0.00038356,120]
[360318467,1746740942601,-557.34,0.00038356,120]
[360318468,1746740942626,-557.34,0.00038356,120]
[360318469,1746740942655,-557.34,0.00038356,120]
[360318470,1746740942680,-557.34,0.00038356,120]
[360318473,1746740942707,-557.34,0.00038356,120]
[360318475,1746740942732,-557.34,0.00038356,120]
[360318476,1746740942759,-557.34,0.00038356,120]
[360318477,1746740942785,-557.34,0.00038356,120]
[360318478,1746740942810,-500.0,0.00038356,120]
[360318479,1746740942835,-519.285105,0.00038356,120]
[360318480,1746740942862,-500.0,0.00038356,120]
[360318481,1746740942887,-500.0,0.00038356,120]
[360318482,1746740942913,-500.0,0.00038356,120]
[360318483,1746740942942,-500.0,0.00038356,120]
[360318484,1746740942969,-500.0,0.00038356,120]
[360318485,1746740942997,-500.0,0.00038356,120]
[360318486,1746740943024,-500.0,0.00038356,120]
[360318487,1746740943053,-500.0,0.00038356,120]
[360318488,1746740943081,-233.76777229,0.00038356,120]
[360318489,1746740943109,-500.0,0.00038356,120]
[360318490,1746740943136,-500.0,0.00038356,120]
[360318491,1746740943163,-500.0,0.00038356,120]
[360318492,1746740943190,-594.73199403,0.00038356,120]
[360318493,1746740943216,-239.46470181,0.00038356,120]
[360318494,1746740943243,-561.71721463,0.00038356,120]
[360318495,1746740943272,-500.0,0.00038356,120]
[360318496,1746740943300,-530.26460874,0.00038356,120]
[360318497,1746740943332,-500.0,0.00038356,120]
[360318498,1746740943359,-500.0,0.00038356,120]
[360318499,1746740943386,-213.15469577,0.00038356,120]
[360318500,1746740943413,-500.0,0.00038356,120]
[360318501,1746740943440,-500.0,0.00038356,120]
[360318502,1746740943467,-500.0,0.00038356,120]
[360318503,1746740943493,-500.0,0.00038356,120]
[360318504,1746740943520,-500.0,0.00038356,120]
[360318505,1746740943547,-500.0,0.00038356,120]
[360318506,1746740943575,-500.0,0.00038356,120]
[360318507,1746740943603,-500.0,0.00038356,120]
[360318508,1746740943631,-500.0,0.00038356,120]
[360318509,1746740943657,-500.0,0.00038356,120]
[360318510,1746740943685,-516.2978152,0.00038356,120]
[360318511,1746740943712,-530.70042877,0.00038356,120]
[360318512,1746740943741,-500.0,0.00038356,120]
[360318513,1746740943771,-500.0,0.00038356,120]
[360318514,1746740943805,-430.36,0.00038356,120]
[360318515,1746740943833,-447.52488733,0.00038356,120]
[360318516,1746740943862,-500.0,0.00038356,120]
[360318517,1746740943897,-500.0,0.00038356,120]
[360318518,1746740943931,-500.0,0.00038356,120]
[360318519,1746740943959,-500.0,0.00038356,120]
[360318520,1746740943990,-500.0,0.00038356,120]
[360318521,1746740944020,-500.0,0.00038356,120]
[360318522,1746740944050,-500.0,0.00038356,120]
[360318523,1746740944078,-636.06455885,0.00038356,120]
[360318524,1746740944109,-500.0,0.00038356,120]
[360318525,1746740944140,-500.0,0.00038356,120]
[360318526,1746740944169,-500.0,0.00038356,120]
[360318527,1746740944196,-500.0,0.00038356,120]
[360318528,1746740944223,-500.0,0.00038356,120]
[360318529,1746740944250,-500.0,0.00038356,120]
[360318530,1746740944280,-500.0,0.00038356,120]
[360318531,1746740944308,-500.0,0.00038356,120]
[360318532,1746740944336,-151.5,0.00038356,120]
[360318533,1746740944362,-500.0,0.00038356,120]
[360318534,1746740944388,-500.0,0.00038356,120]
[360318535,1746740944415,-500.0,0.00038356,120]
[360318536,1746740944441,-500.0,0.00038356,120]
[360318537,1746740944468,-500.0,0.00038356,120]
[360318538,1746740944495,-500.0,0.00038356,120]
[360318539,1746740944520,-627.03329422,0.00038356,120]
[360318540,1746740944548,-500.0,0.00038356,120]
[360318541,1746740944575,-500.0,0.00038356,120]
[360318542,1746740944970,-500.0,0.00038356,120]
[360318543,1746740945001,-500.0,0.00038356,120]
[360318544,1746740945031,-500.0,0.00038356,120]
[360318545,1746740945058,-500.0,0.00038356,120]
[360318546,1746740945088,-500.0,0.00038356,120]
[360318547,1746740945115,-500.0,0.00038356,120]
[360318548,1746740945142,-500.0,0.00038356,120]
[360318549,1746740945170,-500.0,0.00038356,120]
[360318550,1746740945196,-500.0,0.00038356,120]
[360318551,1746740945223,-500.0,0.00038356,120]
[360318552,1746740945249,-500.0,0.00038356,120]
[360318553,1746740945275,-500.0,0.00038356,120]
[360318554,1746740945301,-500.0,0.00038356,120]
[360318555,1746740945329,-500.0,0.00038356,120]
[360318556,1746740945358,-500.0,0.00038356,120]
[360318557,1746740945386,-500.0,0.00038356,120]
[360318558,1746740945413,-500.0,0.00038356,120]
[360318559,1746740945440,-500.0,0.00038356,120]
[360318560,1746740945467,-500.0,0.00038356,120]
[360318561,1746740945493,-500.0,0.00038356,120]
[360318562,1746740945519,-500.0,0.00038356,120]
[360318563,1746740945545,-471.34961458,0.00038356,120]
[360318564,1746740945572,-500.0,0.00038356,120]
[360318565,1746740945600,-500.0,0.00038356,120]
[360318566,1746740945627,-500.0,0.00038356,120]
[360318567,1746740945654,-500.0,0.00038356,120]
[360318568,1746740945681,-500.0,0.00038356,120]
[360318569,1746740945708,-500.0,0.00038356,120]
[360318570,1746740945736,-500.0,0.00038356,120]
[360318571,1746740945765,-500.0,0.00038356,120]
[360318572,1746740945794,-500.0,0.00038356,120]
[360318573,1746740945821,-500.0,0.00038356,120]
[360318574,1746740945848,-500.0,0.00038356,120]
[360318575,1746740945876,-500.0,0.00038356,120]
[360318576,1746740945905,-500.0,0.00038356,120]
[360318577,1746740945944,-500.0,0.00038356,120]
[360318578,1746740945977,-500.0,0.00038356,120]
[360318579,1746740946004,-449.73983441,0.00038356,120]
[360318580,1746740946032,-500.0,0.00038356,120]
[360318581,1746740946059,-632.910568,0.0003836,120]
[360318582,1746740946086,-632.910568,0.0003836,120]
[360318583,1746740946113,-632.910568,0.0003836,120]
[360318584,1746740946139,-632.910568,0.0003836,120]
[360318585,1746740946166,-632.910568,0.0003836,120]
[360318586,1746740946194,-632.910568,0.0003836,120]
[360318587,1746740946221,-632.910568,0.0003836,120]
[360318588,1746740946249,-632.910568,0.0003836,120]
[360318589,1746740946276,-632.910568,0.0003836,120]
[360318590,1746740946302,-632.910568,0.0003836,120]
[360318591,1746740946328,-632.910568,0.0003836,120]
[360318592,1746740946355,-632.910568,0.0003836,120]
[360318593,1746740946381,-632.910568,0.0003836,120]
[360318594,1746740946407,-632.910568,0.0003836,120]
[360318595,1746740946434,-632.910568,0.0003836,120]
[360318596,1746740946459,-632.910568,0.0003836,120]
[360318597,1746740946485,-632.910568,0.0003836,120]
[360318598,1746740946510,-632.910568,0.0003836,120]
[360318599,1746740946536,-632.910568,0.0003836,120]
[360318600,1746740946562,-632.91,0.0003836,120]
[360318601,1746740946589,-1476.79132534,0.0003836,120]
[360318602,1746740946617,-1476.79132534,0.0003836,120]
[360318603,1746740946643,-1476.79132534,0.0003836,120]
[360318604,1746740946670,-1476.79132534,0.0003836,120]
[360318605,1746740946697,-1476.79132534,0.0003836,120]
[360318606,1746740946723,-1476.79132534,0.0003836,120]
[360318607,1746740946750,-1476.79132534,0.0003836,120]
[360318608,1746740946779,-1476.79132534,0.0003836,120]
[360318609,1746740946806,-1476.79132534,0.0003836,120]
[360318610,1746740946836,-1476.79132534,0.0003836,120]
[360318611,1746740946864,-1476.79132534,0.0003836,120]
[360318612,1746740946892,-1476.79132534,0.0003836,120]
[360318613,1746740946921,-1476.79132534,0.0003836,120]
[360318614,1746740946949,-1476.79132534,0.0003836,120]
[360318615,1746740946977,-1476.79132534,0.0003836,120]
[360318616,1746740947004,-1476.79132534,0.0003836,120]
[360318617,1746740947031,-1476.79132534,0.0003836,120]
[360318618,1746740947058,-1476.79132534,0.0003836,120]
[360318619,1746740947084,-1476.79132534,0.0003836,120]
[360318620,1746740947111,-1476.79,0.0003836,120]
[360318621,1746740947138,-298.03472947,0.0003836,120]
[360318622,1746740947164,-298.03472947,0.0003836,120]
[360318623,1746740947189,-298.03472947,0.0003836,120]
[360318624,1746740947215,-298.03472947,0.0003836,120]
[360318625,1746740947240,-298.03472947,0.0003836,120]
[360318626,1746740947267,-298.03472947,0.0003836,120]
[360318627,1746740947292,-298.03472947,0.0003836,120]
[360318628,1746740947317,-298.03472947,0.0003836,120]
[360318629,1746740947342,-298.03472947,0.0003836,120]
[360318630,1746740947369,-298.03472947,0.0003836,120]
[360318631,1746740947395,-298.03472947,0.0003836,120]
[360318632,1746740947422,-298.03472947,0.0003836,120]
[360318633,1746740947448,-298.03472947,0.0003836,120]
[360318634,1746740947474,-298.03472947,0.0003836,120]
[360318635,1746740947499,-298.03472947,0.0003836,120]
[360318636,1746740947864,-298.03472947,0.0003836,120]
[360318637,1746740947894,-298.03472947,0.0003836,120]
[360318638,1746740947921,-298.03472947,0.0003836,120]
[360318639,1746740947949,-298.03472947,0.0003836,120]
[360318640,1746740947975,-298.03,0.0003836,120]
[360318641,1746740948000,-695.41436876,0.0003836,120]
[360318642,1746740948026,-695.41436876,0.0003836,120]
[360318643,1746740948051,-695.41436876,0.0003836,120]
[360318644,1746740948076,-695.41436876,0.0003836,120]
[360318645,1746740948101,-695.41436876,0.0003836,120]
[360318646,1746740948127,-695.41436876,0.0003836,120]
[360318647,1746740948156,-695.41436876,0.0003836,120]
[360318648,1746740948182,-695.41436876,0.0003836,120]
[360318649,1746740948209,-695.41436876,0.0003836,120]
[360318650,1746740948235,-695.41436876,0.0003836,120]
[360318651,1746740948262,-695.41436876,0.0003836,120]
[360318652,1746740948288,-695.41436876,0.0003836,120]
[360318653,1746740948321,-695.41436876,0.0003836,120]
[360318654,1746740948348,-695.41436876,0.0003836,120]
[360318655,1746740948378,-695.41436876,0.0003836,120]
[360318656,1746740948404,-695.41436876,0.0003836,120]
[360318657,1746740948430,-695.41436876,0.0003836,120]
[360318658,1746740948456,-695.41436876,0.0003836,120]
[360318659,1746740948481,-695.41436876,0.0003836,120]
[360318660,1746740948507,-695.41,0.0003836,120]
[360318661,1746740948534,-293.99663355,0.0003836,120]
[360318662,1746740948559,-293.99663355,0.0003836,120]
[360318663,1746740948585,-293.99663355,0.0003836,120]
[360318664,1746740948611,-293.99663355,0.0003836,120]
[360318665,1746740948636,-293.99663355,0.0003836,120]
[360318666,1746740948663,-293.99663355,0.0003836,120]
[360318667,1746740948689,-293.99663355,0.0003836,120]
[360318668,1746740948715,-293.99663355,0.0003836,120]
[360318669,1746740948741,-293.99663355,0.0003836,120]
[360318670,1746740948769,-293.99663355,0.0003836,120]
[360318671,1746740948794,-293.99663355,0.0003836,120]
[360318672,1746740948820,-293.99663355,0.0003836,120]
[360318673,1746740948846,-293.99663355,0.0003836,120]
[360318674,1746740948872,-293.99663355,0.0003836,120]
[360318675,1746740948898,-293.99663355,0.0003836,120]
[360318676,1746740948927,-293.99663355,0.0003836,120]
[360318677,1746740948954,-293.99663355,0.0003836,120]
[360318678,1746740948979,-293.99663355,0.0003836,120]
[360318679,1746740949006,-293.99663355,0.0003836,120]
[360318680,1746740949033,-293.99,0.0003836,120]
[360318681,1746740949059,-685.99214495,0.0003836,120]
[360318682,1746740949086,-685.99214495,0.0003836,120]
[360318683,1746740949113,-685.99214495,0.0003836,120]
[360318684,1746740949138,-685.99214495,0.0003836,120]
[360318685,1746740949165,-685.99214495,0.0003836,120]
[360318686,1746740949191,-685.99214495,0.0003836,120]
[360318687,1746740949218,-685.99214495,0.0003836,120]
[360318688,1746740949249,-685.99214495,0.0003836,120]
[360318689,1746740949279,-685.99214495,0.0003836,120]
[360318690,1746740949307,-685.99214495,0.0003836,120]
[360318691,1746740949335,-685.99214495,0.0003836,120]
[360318692,1746740949362,-685.99214495,0.0003836,120]
[360318693,1746740949389,-685.99214495,0.0003836,120]
[360318694,1746740949418,-685.99214495,0.0003836,120]
[360318695,1746740949444,-685.99214495,0.0003836,120]
[360318696,1746740949470,-685.99214495,0.0003836,120]
[360318697,1746740949497,-685.99214495,0.0003836,120]
[360318698,1746740949525,-685.99214495,0.0003836,120]
[360318699,1746740949551,-685.99214495,0.0003836,120]
[360318700,1746740949577,-685.99,0.0003836,120]
[360318701,1746740949608,-304.93797,0.000386,120]
[360318702,1746740949636,-212.0,0.0003883,30]
[360318703,1746740949662,-500.0,0.0003886,60]
[360318704,1746740949690,-800.0,0.0003886,60]
[360318705,1746740949719,-202.86152129,0.00039,120]
[360318706,1746740949746,-1800.0,0.00039,40]
[360318707,1746740949774,-1000.0,0.00039,120]
[360318708,1746740949801,-343.59375865,0.00039,120]
[360318709,1746740949827,-2899.999999,0.00039,120]
[360318710,1746740949856,-1033.0,0.00039,39]
[360318711,1746740949885,-5000.0,0.00039,120]
[360318712,1746740949914,-1151313.06041582,0.00039,120]
[360318713,1746740949955,-1323.24,0.00039156,120]
[360318714,1746740949986,-557.34,0.00039156,120]
[360318715,1746740950017,-1333.0,0.00039178,30]
[360318716,1746740950046,-500.0,0.00039408,60]
[360318717,1746740950075,-800.0,0.00039408,60]
[360318718,1746740950111,-150.0,0.000396,120]
[360318719,1746740950140,-304.93797,0.000396,120]
[360318720,1746740950168,-160.0,0.000398,32]
[360318721,1746740950196,-160.0,0.000398,32]
[360318722,1746740950224,-2000.0,0.00039863,120]
[360318723,1746740950252,-437.89707213,0.00039886,90]
[360318724,1746740950283,-500.0,0.00039956,60]
[360318725,1746740950316,-800.0,0.00039956,60]
[360318726,1746740950349,-1200.0,0.00039978,31]
[360318727,1746740950390,-437.0,0.00039986,90]
[360318728,1746740950425,-1323.24,0.00039999,120]
[360318729,1746740950458,-1323.24,0.00039999,120]
[360318730,1746740950801,-1323.24,0.00039999,120]
[360318731,1746740950833,-1323.24,0.00039999,120]
[360318732,1746740950867,-1323.26400333,0.00039999,120]
[360318733,1746740950898,-557.34,0.00039999,120]
[360318734,1746740950928,-557.34,0.00039999,120]
[360318735,1746740950957,-557.34,0.00039999,120]
[360318736,1746740950986,-557.34,0.00039999,120]
[360318737,1746740951016,-557.5501162,0.00039999,120]
[360318738,1746740951045,-50000.0,0.0004,40]
[360318739,1746740951075,-50000.0,0.0004,30]
[360318740,1746740951104,-477.12749073,0.0004,30]
[360318741,1746740951134,-2000.0,0.0004,120]
[360318742,1746740951161,-379.01545379,0.0004,120]
[360318743,1746740951187,-346.08993518,0.0004,30]
[360318744,1746740951214,-198.98484585,0.0004,30]
[360318745,1746740951243,-1800.0,0.0004,41]
[360318746,1746740951270,-391634.11994586,0.0004,30]
[360318747,1746740951297,-1500.0,0.0004,120]
[360318748,1746740951324,-164536.11235659,0.0004,30]
[360318749,1746740951351,-152.0,0.0004,120]
[360318750,1746740951379,-598.19,0.0004,120]
[360318751,1746740951406,-110591.76567794,0.0004,30]
[360318752,1746740951432,-1314.4258514,0.0004,120]
[360318753,1746740951459,-3644.02648808,0.0004,30]
[360318754,1746740951486,-20000.0,0.0004,120]
[360318755,1746740951517,-2000.0,0.0004,120]
[360318756,1746740951547,-168419.64919516,0.0004,30]
[360318757,1746740951577,-350038.09668357,0.0004,30]
[360318758,1746740951607,-228.0,0.0004,120]
[360318759,1746740951647,-3112.0,0.0004,120]
[360318760,1746740951680,-2581.16934923,0.0004,30]
[360318761,1746740951712,-1830.7190261,0.0004,120]
[360318762,1746740951744,-1689.0,0.0004,30]
[360318763,1746740951776,-2000.0,0.0004,120]
[360318764,1746740951806,-700291.69660707,0.0004,120]
[360318765,1746740951836,-10364.3328408,0.0004,120]
[360318766,1746740951868,-1493.0,0.0004,30]
[360318767,1746740951899,-315800.81054958,0.0004,30]
[360318768,1746740953598,10000.0,0.00030137,120]
[360318769,1746740954820,-234.82624802,0.00019549,4]
[360318770,1746740954844,-34.78223406,0.00019553,4]
[360318771,1746740956423,10000.0,0.00030137,120]
[360318772,1746740958207,-1782.75332593,0.0004,30]
[360318773,1746740958237,-5232.98710008,0.0004,120]
[360318774,1746740958266,-568.7608026,0.0004,30]
[360318775,1746740958294,-4341.0,0.0004,120]
[360318776,1746740958320,-3219.0,0.0004,90]
[360318777,1746740958346,-17675.0,0.0004,120]
[360318778,1746740958379,-622.38485743,0.0004,60]
[360318779,1746740958408,-181.33,0.0004,120]
[360318780,1746740958436,-1053.27371675,0.0004,30]
[360318781,1746740958465,-550.41340811,0.0004,120]
[360318782,1746740958493,-584.42,0.0004,120]
[360318783,1746740958521,-2305.54690368,0.0004,30]
[360318784,1746740958548,-136608.29952625,0.0004,30]
[360318785,1746740958575,-206.0,0.0004,30]
[360318786,1746740958613,-30000.0,0.0004,120]
[360318787,1746740958645,-510312.0,0.0004,120]
[360318788,1746740958672,-169055.76329604,0.0004,120]
[360318789,1746740958700,-2000.0,0.0004,120]
[360318790,1746740958728,-3554.69797943,0.0004,120]
[360318791,1746740958756,-500.0,0.0004,120]
[360318792,1746740958785,-600.0,0.00040036,30]
[360318793,1746740958815,-212.0,0.0004007,30]
[360318794,1746740958842,-1300.0,0.00040097,30]
[360318795,1746740958870,-2000.0,0.00040137,120]
[360318796,1746740958899,-1380.81288539,0.00040171,30]
[360318797,1746740958928,-2000.0,0.00040274,120]
[360318798,1746740958957,-500.0,0.00040357,30]
[360318799,1746740958988,-2000.0,0.00040411,120]
[360318800,1746740959019,-1300.0,0.00040442,30]
[360318801,1746740959047,-500.0,0.00040496,30]
[360318802,1746740959075,-600.0,0.00040497,30]
[360318803,1746740959104,-800.0,0.00040504,60]